[Event "FIDE Women's Grand Swiss 2023"]
[Site "Villa Marina, Douglas, Isle of Man"]
[Date "2023.11.01"]
[Round "7.23"]
[White "Gomez Barrera, Javiera Belen"]
[Black "Tania, Sachdev"]
[Result "0-1"]
[WhiteElo "2266"]
[BlackElo "2389"]
[EventDate "2023.10.25"]
[ECO "C54"]
[PlyCount "84"]
[BlackFideId "5007844"]
[TimeControl "40/90 + 30 + 30s/move"]
[WhiteFideId "3418723"]

1.e4 {[%clk 01:30:57][%emt 00:00:03]} 1...e5 {[%clk 01:30:56][%emt 00:00:04]} 
2.Nf3 {[%clk 01:31:15][%emt 00:00:12]} 2...Nc6 {[%clk 01:31:20][%emt 00:00:07]} 
3.Bc4 {[%clk 01:31:40][%emt 00:00:05]} 3...Nf6 {[%clk 01:31:32][%emt 00:00:18]} 
4.d3 {[%clk 01:32:06][%emt 00:00:04]} 4...Bc5 {[%clk 01:31:43][%emt 00:00:19]} 
5.c3 {[%clk 01:32:32][%emt 00:00:04]} 5...d6 {[%clk 01:32:08][%emt 00:00:05]} 
6.O-O {[%clk 01:32:52][%emt 00:00:09]} 6...h6 {[%clk 01:31:13][%emt 00:01:25]} 
7.Re1 {[%clk 01:29:49][%emt 00:03:33]} 7...O-O {[%clk 01:30:54][%emt 00:00:48]} 
8.h3 {[%clk 01:27:49][%emt 00:02:31]} 8...a5 {[%clk 01:30:17][%emt 00:01:08]} 
9.Nbd2 {[%clk 01:26:50][%emt 00:01:28]} 9...Bd7 {[%clk 01:29:35][%emt 00:01:12]} 
10.Nf1 {[%clk 01:17:17][%emt 00:10:03]} 10...a4 {[%clk 01:25:18][%emt 00:04:47]} 
11.Bb5 {[%clk 01:11:29][%emt 00:06:19]} 11...Ne7 {[%clk 01:23:13][%emt
00:02:34]} 12.Bxd7 {[%clk 01:11:51][%emt 00:00:08]} 12...Qxd7 {[%clk
01:21:38][%emt 00:02:05]} 13.d4 {[%clk 01:11:16][%emt 00:01:06]} 13...exd4 
{[%clk 01:20:48][%emt 00:01:19]} 14.cxd4 {[%clk 01:08:16][%emt 00:03:30]} 
14...Bb4 {[%clk 01:20:34][%emt 00:00:44]} 15.Re2 {[%clk 00:57:18][%emt
00:11:29]} 15...d5 {[%clk 01:11:41][%emt 00:09:23]} 16.e5 {[%clk 00:55:24][%emt
00:02:24]} 16...Ne4 {[%clk 01:11:20][%emt 00:00:50]} 17.Ng3 {[%clk
00:43:59][%emt 00:11:55]} 17...Nxg3 {[%clk 01:02:07][%emt 00:09:43]} 18.fxg3 
{[%clk 00:44:28][%emt 00:00:01]} 18...Nc6 {[%clk 00:49:47][%emt 00:12:51]} 
19.Qd3 {[%clk 00:37:48][%emt 00:07:10]} 19...a3 {[%clk 00:45:11][%emt 00:05:06]} 
20.bxa3 {[%clk 00:37:35][%emt 00:00:43]} 20...Be7 {[%clk 00:45:30][%emt
00:00:11]} 21.Rb1 {[%clk 00:26:13][%emt 00:11:52]} 21...Nd8 {[%clk
00:41:48][%emt 00:04:12]} 22.Rb3 {[%clk 00:25:50][%emt 00:00:52]} 22...b6 
{[%clk 00:37:29][%emt 00:04:50]} 23.Rc2 {[%clk 00:24:14][%emt 00:02:05]} 
23...Ne6 {[%clk 00:36:59][%emt 00:01:00]} 24.Kh2 {[%clk 00:22:46][%emt
00:01:59]} 24...Ra4 {[%clk 00:34:38][%emt 00:02:50]} 25.Qf5 {[%clk
00:15:19][%emt 00:07:57]} 25...Rfa8 {[%clk 00:22:14][%emt 00:12:55]} 26.Rcc3 
{[%clk 00:14:28][%emt 00:01:21]} 26...Qe8 {[%clk 00:21:22][%emt 00:01:21]} 
27.Bb2 {[%clk 00:08:14][%emt 00:06:44]} 27...R8a6 {[%clk 00:18:56][%emt
00:02:56]} 28.Re3 {[%clk 00:06:36][%emt 00:02:09]} 28...Qa8 {[%clk
00:14:38][%emt 00:04:47]} 29.g4 {[%clk 00:02:03][%emt 00:05:03]} 29...c5 {[%clk
00:10:33][%emt 00:04:36]} 30.dxc5 {[%clk 00:02:23][%emt 00:00:10]} 30...bxc5 
{[%clk 00:10:48][%emt 00:00:15]} 31.Rb5 {[%clk 00:01:51][%emt 00:01:02]} 
31...R4a5 {[%clk 00:05:15][%emt 00:06:03]} 32.Rxa5 {[%clk 00:02:03][%emt
00:00:18]} 32...Rxa5 {[%clk 00:05:43][%emt 00:00:01]} 33.Re1 {[%clk
00:01:01][%emt 00:01:32]} 33...Qa6 {[%clk 00:04:03][%emt 00:02:10]} 34.Bc1 
{[%clk 00:00:54][%emt 00:00:38]} 34...Qc4 {[%clk 00:01:34][%emt 00:02:59]} 
35.g5 {[%clk 00:00:51][%emt 00:00:33]} 35...g6 {[%clk 00:01:44][%emt 00:00:20]} 
36.Qb1 {[%clk 00:00:49][%emt 00:00:31]} 36...Rb5 {[%clk 00:01:58][%emt
00:00:16]} 37.Qa1 {[%clk 00:01:07][%emt 00:00:13]} 37...hxg5 {[%clk
00:01:58][%emt 00:00:30]} 38.Bd2 {[%clk 00:01:15][%emt 00:00:22]} 38...d4 
{[%clk 00:01:18][%emt 00:01:10]} 39.a4 {[%clk 00:00:36][%emt 00:01:09]} 
39...Qxa4 {[%clk 00:01:34][%emt 00:00:14]} 40.Qc1 {[%clk 00:00:58][%emt
00:00:08]} 40...Qxa2 {[%clk 00:00:46][%emt 00:01:18]} 41.Bxg5 {[%clk
00:29:25][%emt 00:02:03]} 41...Bxg5 {[%clk 00:27:25][%emt 00:03:50]} 42.Nxg5 
{[%clk 00:29:53][%emt 00:00:02]} 42...Rb2 {[%clk 00:27:36][%emt 00:00:19]} ( 
42...Rb2 {[%clk 00:27:36][%emt 00:00:19]} 43.Qd1 {[%emt 00:00:48]} ) 0-1

[Event "FIDE Women's Grand Swiss 2023"]
[Site "Villa Marina, Douglas, Isle of Man"]
[Date "2023.11.02"]
[Round "8.4"]
[White "Garifullina, Leya"]
[Black "Shuvalova, Polina"]
[Result "1-0"]
[WhiteElo "2402"]
[BlackElo "2506"]
[EventDate "2023.10.25"]
[ECO "C84"]
[PlyCount "99"]
[BlackClock "00:10:57"]
[BlackFideId "24171760"]
[TimeControl "40/90 + 30 + 30s/move"]
[WhiteClock "00:21:27"]
[WhiteFideId "34127035"]

1.e4 {[%clk 01:30:48][%emt 00:00:11]} 1...e5 {[%clk 01:30:57][%emt 00:00:04]} 
2.Nf3 {[%clk 01:31:07][%emt 00:00:10]} 2...Nc6 {[%clk 01:31:24][%emt 00:00:03]} 
3.Bb5 {[%clk 01:31:28][%emt 00:00:09]} 3...a6 {[%clk 01:31:51][%emt 00:00:04]} 
4.Ba4 {[%clk 01:31:52][%emt 00:00:05]} 4...Nf6 {[%clk 01:32:18][%emt 00:00:03]} 
5.O-O {[%clk 01:32:05][%emt 00:00:17]} 5...Be7 {[%clk 01:32:43][%emt 00:00:04]} 
6.d3 {[%clk 01:32:23][%emt 00:00:12]} 6...b5 {[%clk 01:33:04][%emt 00:00:10]} 
7.Bb3 {[%clk 01:32:46][%emt 00:00:06]} 7...d6 {[%clk 01:33:32][%emt 00:00:02]} 
8.a3 {[%clk 01:32:48][%emt 00:00:28]} 8...O-O {[%clk 01:33:46][%emt 00:00:16]} 
9.Nc3 {[%clk 01:33:12][%emt 00:00:05]} 9...Rb8 {[%clk 01:34:05][%emt 00:00:11]} 
10.h3 {[%clk 01:32:00][%emt 00:01:41]} 10...h6 {[%clk 01:34:29][%emt 00:00:07]} 
11.Nd5 {[%clk 01:29:47][%emt 00:02:43]} 11...Nxd5 {[%clk 01:34:38][%emt
00:00:21]} 12.Bxd5 {[%clk 01:27:44][%emt 00:02:33]} 12...Qe8 {[%clk
01:34:59][%emt 00:00:09]} 13.Be3 {[%clk 01:15:41][%emt 00:12:33]} 13...Bd8 
{[%clk 01:31:50][%emt 00:03:40]} 14.b4 {[%clk 01:13:28][%emt 00:02:42]} 
14...Bd7 {[%clk 01:23:13][%emt 00:09:07]} 15.Re1 {[%clk 01:07:51][%emt
00:06:07]} 15...Ne7 {[%clk 01:14:33][%emt 00:09:10]} 16.Bb3 {[%clk
01:01:28][%emt 00:06:53]} 16...Ng6 {[%clk 01:13:46][%emt 00:01:18]} 17.d4 
{[%clk 00:58:23][%emt 00:03:35]} 17...exd4 {[%clk 01:06:07][%emt 00:08:09]} 
18.Bxd4 {[%clk 00:56:32][%emt 00:02:20]} 18...Be6 {[%clk 01:04:11][%emt
00:02:27]} 19.e5 {[%clk 00:49:59][%emt 00:07:03]} 19...Bxb3 {[%clk
00:56:06][%emt 00:08:35]} 20.cxb3 {[%clk 00:45:14][%emt 00:05:15]} 20...Qd7 
{[%clk 00:56:25][%emt 00:00:11]} 21.Qc2 {[%clk 00:38:01][%emt 00:07:43]} 
21...Re8 {[%clk 00:56:25][%emt 00:00:31]} 22.Rac1 {[%clk 00:31:04][%emt
00:07:27]} 22...Bg5 {[%clk 00:49:13][%emt 00:07:42]} 23.Rcd1 {[%clk
00:25:02][%emt 00:06:31]} 23...Rbd8 {[%clk 00:46:07][%emt 00:03:37]} 24.Bb2 
{[%clk 00:24:01][%emt 00:01:30]} 24...Qc8 {[%clk 00:37:34][%emt 00:09:03]} 
25.exd6 {[%clk 00:23:25][%emt 00:01:06]} 25...cxd6 {[%clk 00:32:31][%emt
00:05:34]} 26.Qxc8 {[%clk 00:20:39][%emt 00:03:15]} 26...Rxe1+ {[%clk
00:30:18][%emt 00:02:43]} 27.Nxe1 {[%clk 00:20:58][%emt 00:00:11]} 27...Rxc8 
{[%clk 00:30:46][%emt 00:00:02]} 28.Rxd6 {[%clk 00:20:51][%emt 00:00:37]} 
28...Bc1 {[%clk 00:30:42][%emt 00:00:34]} 29.Bxc1 {[%clk 00:19:04][%emt
00:02:17]} 29...Rxc1 {[%clk 00:31:08][%emt 00:00:05]} 30.Kf1 {[%clk
00:19:28][%emt 00:00:05]} 30...Rb1 {[%clk 00:24:13][%emt 00:07:26]} 31.Rxa6 
{[%clk 00:15:48][%emt 00:04:10]} 31...Nf4 {[%clk 00:22:20][%emt 00:02:22]} 
32.Ra8+ {[%clk 00:13:19][%emt 00:02:59]} 32...Kh7 {[%clk 00:22:46][%emt
00:00:04]} 33.Re8 {[%clk 00:10:48][%emt 00:03:00]} 33...Rxb3 {[%clk
00:19:31][%emt 00:03:46]} 34.Re3 {[%clk 00:10:56][%emt 00:00:21]} 34...Rb2 
{[%clk 00:19:41][%emt 00:00:21]} 35.h4 {[%clk 00:10:02][%emt 00:01:25]} 
35...Ra2 {[%clk 00:17:15][%emt 00:02:56]} 36.g3 {[%clk 00:08:41][%emt 00:01:50]} 
36...Nd5 {[%clk 00:17:02][%emt 00:00:45]} 37.Rd3 {[%clk 00:08:12][%emt
00:00:58]} 37...Nb6 {[%clk 00:16:12][%emt 00:01:20]} 38.Rc3 {[%clk
00:05:11][%emt 00:03:30]} 38...Na4 {[%clk 00:04:43][%emt 00:12:00]} 39.Rc7 
{[%clk 00:04:57][%emt 00:00:44]} 39...Rxa3 {[%clk 00:02:43][%emt 00:02:31]} 
40.Rxf7 {[%clk 00:05:19][%emt 00:00:06]} 40...Rb3 {[%clk 00:02:58][%emt
00:00:16]} 41.Nc2 {[%clk 00:03:25][%emt 00:02:23]} 41...Kg6 {[%clk
00:24:48][%emt 00:08:41]} 42.Rb7 {[%clk 00:28:14][%emt 00:05:41]} 42...Rb2 
{[%clk 00:23:13][%emt 00:02:05]} 43.Ne3 {[%clk 00:27:05][%emt 00:01:38]} 
43...Nc3 {[%clk 00:17:52][%emt 00:05:51]} 44.h5+ {[%clk 00:21:05][%emt
00:06:30]} 44...Kxh5 {[%clk 00:13:11][%emt 00:05:11]} 45.Rxg7 {[%clk
00:21:24][%emt 00:00:11]} 45...Ne4 {[%clk 00:13:00][%emt 00:00:40]} ( 45...Rxb4 
46.f3 ) 46.Nd5 {[%clk 00:21:27][%emt 00:00:27]} 46...Rxf2+ {[%clk 00:11:36][%emt
00:01:55]} 47.Kg1 {[%clk 00:21:38][%emt 00:00:19]} 47...Nf6 {[%clk
00:10:16][%emt 00:01:51]} 48.Nf4+ {[%clk 00:20:43][%emt 00:01:25]} 48...Rxf4 
{[%clk 00:10:42] [%emt 00:00:04]} 49.gxf4 {[%clk 00:21:08] [%emt 00:00:05]} 
49...Nd5 {[%clk 00:11:06] [%emt 00:00:05]} 50.f5 {[%clk 00:21:27] [%emt
00:00:11]} 1-0

[Event "FIDE Women's Grand Swiss 2023"]
[Site "Villa Marina, Douglas, Isle of Man"]
[Date "2023.11.02"]
[Round "8.8"]
[White "Narva, Mai"]
[Black "Muzychuk, Mariya"]
[Result "1-0"]
[WhiteElo "2399"]
[BlackElo "2519"]
[EventDate "2023.10.25"]
[ECO "B33"]
[PlyCount "93"]
[BlackClock "00:27:42"]
[BlackFideId "14114550"]
[TimeControl "40/90 + 30 + 30s/move"]
[WhiteClock "00:27:46"]
[WhiteFideId "4500512"]

1.e4 {[%clk 01:30:56][%emt 00:00:03]} 1...c5 {[%clk 01:30:56][%emt 00:00:05]} 
2.Nf3 {[%clk 01:31:18][%emt 00:00:07]} 2...Nc6 {[%clk 01:31:23][%emt 00:00:04]} 
3.d4 {[%clk 01:31:32][%emt 00:00:15]} 3...cxd4 {[%clk 01:31:48][%emt 00:00:05]} 
4.Nxd4 {[%clk 01:31:57][%emt 00:00:05]} 4...Nf6 {[%clk 01:32:15][%emt 00:00:03]} 
5.Nc3 {[%clk 01:32:17][%emt 00:00:10]} 5...e5 {[%clk 01:32:39][%emt 00:00:06]} 
6.Ndb5 {[%clk 01:32:39][%emt 00:00:09]} 6...d6 {[%clk 01:33:05][%emt 00:00:04]} 
7.Bg5 {[%clk 01:32:48][%emt 00:00:21]} 7...a6 {[%clk 01:33:30][%emt 00:00:05]} 
8.Na3 {[%clk 01:33:10][%emt 00:00:07]} 8...b5 {[%clk 01:33:57][%emt 00:00:04]} 
9.Nd5 {[%clk 01:33:19][%emt 00:00:21]} 9...Be7 {[%clk 01:34:20][%emt 00:00:07]} 
10.Bxf6 {[%clk 01:33:23][%emt 00:00:27]} 10...Bxf6 {[%clk 01:34:45][%emt
00:00:05]} 11.c3 {[%clk 01:33:33][%emt 00:00:20]} 11...Rb8 {[%clk 01:34:15][%emt
00:01:00]} 12.Nc2 {[%clk 01:33:45][%emt 00:00:17]} 12...Bg5 {[%clk
01:34:40][%emt 00:00:05]} 13.g3 {[%clk 01:33:52][%emt 00:00:23]} 13...O-O 
{[%clk 01:32:23][%emt 00:02:48]} 14.h4 {[%clk 01:34:07][%emt 00:00:14]} 
14...Bh6 {[%clk 01:28:02][%emt 00:04:51]} 15.Bh3 {[%clk 01:34:12][%emt
00:00:25]} 15...Be6 {[%clk 01:24:12][%emt 00:04:19]} 16.Bxe6 {[%clk
01:34:12][%emt 00:00:31]} 16...fxe6 {[%clk 01:24:38][%emt 00:00:04]} 17.O-O 
{[%clk 01:34:24][%emt 00:00:18]} 17...Rf7 {[%clk 01:07:10][%emt 00:17:59]} 
18.Nde3 {[%clk 01:34:23][%emt 00:00:31]} 18...Bxe3 {[%clk 01:07:34][%emt
00:00:06]} 19.Nxe3 {[%clk 01:34:46][%emt 00:00:06]} 19...Na5 {[%clk
01:07:33][%emt 00:00:31]} 20.Qe2 {[%clk 01:10:55][%emt 00:24:21]} 20...Qc7 
{[%clk 01:06:55][%emt 00:01:08]} 21.h5 {[%clk 01:02:35][%emt 00:08:49]} 
21...Nc4 {[%clk 00:59:22][%emt 00:08:04]} 22.Ng4 {[%clk 00:57:57][%emt
00:05:07]} 22...h6 {[%clk 00:55:22][%emt 00:04:31]} 23.Rfd1 {[%clk
00:53:14][%emt 00:05:12]} 23...Rd7 {[%clk 00:40:22][%emt 00:15:30]} 24.Rd3 
{[%clk 00:42:17][%emt 00:11:27]} 24...Rbd8 {[%clk 00:40:26][%emt 00:00:26]} 
25.Rad1 {[%clk 00:30:35][%emt 00:12:11]} 25...Kh7 {[%clk 00:36:49][%emt
00:04:07]} 26.b3 {[%clk 00:27:47][%emt 00:03:19]} 26...Na5 {[%clk 00:36:42][%emt
00:00:38]} 27.Ne3 {[%clk 00:25:33][%emt 00:02:43]} 27...Rf7 {[%clk
00:32:11][%emt 00:05:01]} 28.R1d2 {[%clk 00:23:04][%emt 00:02:58]} 28...Nb7 
{[%clk 00:31:36][%emt 00:01:06]} 29.b4 {[%clk 00:22:23][%emt 00:01:12]} 
29...Rdf8 {[%clk 00:31:46][%emt 00:00:21]} 30.Qg4 {[%clk 00:19:26][%emt
00:03:26]} 30...Rf6 {[%clk 00:28:42][%emt 00:03:34]} 31.Kg2 {[%clk
00:12:47][%emt 00:07:09]} 31...Qc6 {[%clk 00:27:25][%emt 00:01:48]} 32.c4 
{[%clk 00:05:57][%emt 00:07:19]} 32...g6 {[%clk 00:12:17][%emt 00:15:38]} 
33.cxb5 {[%clk 00:05:10][%emt 00:01:17]} 33...axb5 {[%clk 00:12:37][%emt
00:00:10]} 34.Rc2 {[%clk 00:00:51][%emt 00:04:48]} 34...gxh5 {[%clk
00:12:44][%emt 00:00:23]} 35.Qh4 {[%clk 00:01:12][%emt 00:00:09]} 35...Qe8 
{[%clk 00:04:33][%emt 00:08:42]} 36.Rc7+ {[%clk 00:01:06][%emt 00:00:35]} 
36...R6f7 {[%clk 00:04:03][%emt 00:01:00]} 37.Rdc3 {[%clk 00:00:56][%emt
00:00:40]} 37...Kg8 {[%clk 00:04:18][%emt 00:00:15]} 38.Kg1 {[%clk
00:00:36][%emt 00:00:51]} 38...Rd7 {[%clk 00:01:03][%emt 00:03:45]} ( 38...Nc5 
39.Rxf7 Qxf7 40.Nd1 Na4 41.Rc2 ) 39.Rxd7 {[%clk 00:00:40][%emt 00:00:25]} 
39...Qxd7 {[%clk 00:01:30][%emt 00:00:03]} 40.Qxh5 {[%clk 00:00:50][%emt
00:00:20]} 40...Qg7 {[%clk 00:00:35][%emt 00:01:25]} 41.Ng4 {[%clk
00:29:00][%emt 00:02:20]} 41...Kh8 {[%clk 00:28:05][%emt 00:03:00]} 42.Nxh6 
{[%clk 00:28:05][%emt 00:01:24]} 42...Qh7 {[%clk 00:28:16][%emt 00:00:20]} 
43.Rc7 {[%clk 00:26:29][%emt 00:02:06]} 43...Qxc7 {[%clk 00:27:16][%emt
00:01:31]} 44.Nf7+ {[%clk 00:26:45][%emt 00:00:13]} 44...Kg7 {[%clk
00:27:39][%emt 00:00:07]} 45.Qh6+ {[%clk 00:27:03][%emt 00:00:12]} 45...Kxf7 
{[%clk 00:27:57][%emt 00:00:12]} 46.Qh7+ {[%clk 00:27:24][%emt 00:00:08]} 
46...Kf6 {[%clk 00:28:25][%emt 00:00:03]} 47.Qxc7 {[%clk 00:27:46][%emt
00:00:08]} 1-0

[Event "FIDE Women's Grand Swiss 2023"]
[Site "Villa Marina, Douglas, Isle of Man"]
[Date "2023.11.02"]
[Round "8.13"]
[White "Batsiashvili, Nino"]
[Black "Socko, Monika"]
[Result "0-1"]
[WhiteElo "2475"]
[BlackElo "2380"]
[EventDate "2023.10.25"]
[ECO "E11"]
[PlyCount "158"]
[BlackClock "00:02:57"]
[BlackFideId "1106619"]
[TimeControl "40/90 + 30 + 30s/move"]
[WhiteClock "00:12:01"]
[WhiteFideId "13602993"]

1.d4 {[%clk 01:30:58][%emt 00:00:01]} 1...Nf6 {[%clk 01:30:54][%emt 00:00:06]} 
2.c4 {[%clk 01:31:25][%emt 00:00:04]} 2...e6 {[%clk 01:31:17][%emt 00:00:07]} 
3.Nf3 {[%clk 01:31:51][%emt 00:00:04]} 3...Bb4+ {[%clk 01:31:34][%emt 00:00:12]} 
4.Bd2 {[%clk 01:32:12][%emt 00:00:10]} 4...Qe7 {[%clk 01:31:52][%emt 00:00:12]} 
5.e3 {[%clk 01:31:05][%emt 00:01:37]} 5...b6 {[%clk 01:30:35][%emt 00:01:48]} 
6.Be2 {[%clk 01:30:30][%emt 00:01:04]} 6...Bb7 {[%clk 01:30:18][%emt 00:00:47]} 
7.O-O {[%clk 01:30:53][%emt 00:00:07]} 7...Bxd2 {[%clk 01:28:37][%emt 00:02:11]} 
8.Nfxd2 {[%clk 01:30:44][%emt 00:00:39]} 8...O-O {[%clk 01:27:57][%emt
00:01:11]} 9.Nc3 {[%clk 01:30:57][%emt 00:00:17]} 9...c5 {[%clk 01:25:10][%emt
00:03:17]} 10.Bf3 {[%clk 01:28:37][%emt 00:02:49]} 10...Bxf3 {[%clk
01:19:21][%emt 00:06:20]} 11.Nxf3 {[%clk 01:23:56][%emt 00:05:10]} 11...d6 
{[%clk 01:12:04][%emt 00:07:47]} 12.Qa4 {[%clk 01:13:25][%emt 00:11:02]} 
12...Rc8 {[%clk 01:10:30][%emt 00:02:04]} 13.Rad1 {[%clk 01:12:05][%emt
00:01:49]} 13...Nbd7 {[%clk 01:08:20][%emt 00:02:40]} 14.Qa3 {[%clk
01:06:50][%emt 00:05:46]} 14...Qf8 {[%clk 00:55:54][%emt 00:12:55]} 15.Rd2 
{[%clk 01:04:44][%emt 00:02:35]} 15...cxd4 {[%clk 00:53:26][%emt 00:02:59]} 
16.Rxd4 {[%clk 01:05:10][%emt 00:00:04]} 16...Ne5 {[%clk 00:52:28][%emt
00:01:29]} 17.Nd2 {[%clk 01:03:20][%emt 00:02:21]} 17...Nc6 {[%clk
00:48:42][%emt 00:04:16]} 18.Rxd6 {[%clk 01:00:39][%emt 00:03:11]} 18...Ne8 
{[%clk 00:48:54][%emt 00:00:18]} 19.Rd3 {[%clk 01:00:00][%emt 00:01:08]} 
19...Qxa3 {[%clk 00:49:19][%emt 00:00:06]} 20.bxa3 {[%clk 01:00:28][%emt
00:00:03]} 20...Ne5 {[%clk 00:41:35][%emt 00:08:14]} 21.Rd4 {[%clk
01:00:42][%emt 00:00:15]} 21...Nc6 {[%clk 00:42:02][%emt 00:00:03]} 22.Rf4 
{[%clk 00:59:52][%emt 00:01:19]} 22...Nd6 {[%clk 00:38:20][%emt 00:04:13]} 
23.Nb5 {[%clk 00:58:53][%emt 00:01:28]} 23...Rd8 {[%clk 00:37:54][%emt
00:00:57]} 24.Nxd6 {[%clk 00:57:34][%emt 00:01:49]} 24...Rxd6 {[%clk
00:38:20][%emt 00:00:04]} 25.Nb3 {[%clk 00:57:52][%emt 00:00:12]} 25...Rd3 
{[%clk 00:34:23][%emt 00:04:27]} 26.Rc1 {[%clk 00:53:58][%emt 00:04:23]} 
26...e5 {[%clk 00:27:52][%emt 00:07:02]} 27.Rh4 {[%clk 00:53:02][%emt 00:01:25]} 
27...a5 {[%clk 00:27:03][%emt 00:01:20]} 28.c5 {[%clk 00:49:02][%emt 00:04:29]} 
28...a4 {[%clk 00:25:09][%emt 00:02:25]} 29.Na1 {[%clk 00:31:13][%emt 00:18:19]} 
29...Rad8 {[%clk 00:24:16][%emt 00:01:22]} ( 29...b5 ) 30.Rf1 {[%clk
00:30:38][%emt 00:01:04]} 30...b5 {[%clk 00:22:08][%emt 00:02:39]} 31.Nc2 
{[%clk 00:31:03][%emt 00:00:05]} 31...Rc3 {[%clk 00:22:26][%emt 00:00:12]} 
32.Nb4 {[%clk 00:31:29][%emt 00:00:04]} 32...Rxc5 {[%clk 00:22:39][%emt
00:00:17]} 33.Nxc6 {[%clk 00:31:08][%emt 00:00:51]} 33...Rxc6 {[%clk
00:23:07][%emt 00:00:02]} 34.Rb4 {[%clk 00:31:29][%emt 00:00:09]} 34...Rc5 
{[%clk 00:18:10][%emt 00:05:27]} 35.g4 {[%clk 00:26:16][%emt 00:05:42]} 
35...Rd2 {[%clk 00:17:01][%emt 00:01:40]} 36.Rfb1 {[%clk 00:26:35][%emt
00:00:11]} 36...f6 {[%clk 00:17:25][%emt 00:00:06]} 37.Rxb5 {[%clk
00:25:04][%emt 00:02:01]} 37...Rxb5 {[%clk 00:16:43][%emt 00:01:12]} 38.Rxb5 
{[%clk 00:25:33][%emt 00:00:01]} 38...Rxa2 {[%clk 00:17:08][%emt 00:00:05]} 
39.Rb8+ {[%clk 00:21:50][%emt 00:04:13]} 39...Kf7 {[%clk 00:17:33][%emt
00:00:05]} 40.Rb7+ {[%clk 00:22:18][%emt 00:00:03]} 40...Kg6 {[%clk
00:17:19][%emt 00:00:44]} 41.Ra7 {[%clk 00:22:05][%emt 00:00:43]} 41...Rxa3 
{[%clk 00:17:42][%emt 00:00:06]} 42.Kg2 {[%clk 00:22:28][%emt 00:00:07]} 
42...Ra1 {[%clk 00:16:39][%emt 00:01:33]} 43.h4 {[%clk 00:18:45][%emt 00:04:13]} 
43...a3 {[%clk 00:13:34][%emt 00:03:36]} 44.Kf3 {[%clk 00:12:59][%emt 00:06:15]} 
44...a2 {[%clk 00:08:01][%emt 00:06:03]} 45.h5+ {[%clk 00:13:05][%emt 00:00:24]} 
45...Kh6 {[%clk 00:08:18][%emt 00:00:13]} 46.Ke4 {[%clk 00:13:06][%emt
00:00:28]} 46...Rg1 {[%clk 00:08:06][%emt 00:00:42]} 47.Rxa2 {[%clk
00:13:02][%emt 00:00:34]} 47...Rxg4+ {[%clk 00:08:32][%emt 00:00:04]} 48.f4 
{[%clk 00:11:59][%emt 00:01:33]} 48...Rh4 {[%clk 00:06:12][%emt 00:02:51]} 
49.Ra5 {[%clk 00:08:47][%emt 00:03:41]} 49...exf4 {[%clk 00:06:15][%emt
00:00:28]} 50.exf4 {[%clk 00:09:15]} 50...Rxh5 {[%clk 00:06:38][%emt 00:00:06]} 
51.Ra1 {[%clk 00:09:35][%emt 00:00:10]} 51...Rh4 {[%clk 00:06:04][%emt
00:01:04]} 52.Kf3 {[%clk 00:09:52][%emt 00:00:13]} 52...g5 {[%clk 00:05:55][%emt
00:00:40]} 53.fxg5+ {[%clk 00:10:16][%emt 00:00:06]} 53...fxg5 {[%clk
00:06:21][%emt 00:00:04]} 54.Ra7 {[%clk 00:10:14][%emt 00:00:32]} 54...Rb4 
{[%clk 00:06:21][%emt 00:00:29]} 55.Kg3 {[%clk 00:10:39][%emt 00:00:06]} 
55...Kg6 {[%clk 00:06:41][%emt 00:00:10]} 56.Ra3 {[%clk 00:10:49][%emt
00:00:19]} 56...Rb6 {[%clk 00:06:44][%emt 00:00:28]} 57.Kh3 {[%clk
00:10:54][%emt 00:00:25]} 57...h5 {[%clk 00:07:01][%emt 00:00:13]} 58.Rc3 
{[%clk 00:11:02][%emt 00:00:22]} 58...h4 {[%clk 00:07:16][%emt 00:00:15]} 
59.Rc8 {[%clk 00:11:18][%emt 00:00:14]} 59...Rb3+ {[%clk 00:07:39][%emt
00:00:07]} 60.Kg2 {[%clk 00:11:47]} 60...Re3 {[%clk 00:07:22][%emt 00:00:47]} 
61.Ra8 {[%clk 00:12:03][%emt 00:00:14]} 61...Kf5 {[%clk 00:07:35][%emt
00:00:17]} 62.Kf2 {[%clk 00:12:01][%emt 00:00:31]} 62...Re4 {[%clk
00:07:51][%emt 00:00:14]} 63.Kf3 {[%clk 00:12:26][%emt 00:00:05]} 63...Rf4+ 
{[%clk 00:07:29][%emt 00:00:53]} 64.Kg2 {[%clk 00:12:54][%emt 00:00:01]} 
64...Kg4 {[%clk 00:07:45][%emt 00:00:14]} 65.Ra3 {[%clk 00:13:19][%emt
00:00:05]} 65...Rb4 {[%clk 00:07:59][%emt 00:00:16]} 66.Ra2 {[%clk
00:13:45][%emt 00:00:05]} 66...h3+ {[%clk 00:07:00][%emt 00:01:28]} 67.Kf2 
{[%clk 00:14:10][%emt 00:00:05]} 67...Kh4 {[%clk 00:06:59][%emt 00:00:32]} 
68.Ra8 {[%clk 00:14:36][%emt 00:00:05]} 68...Rb2+ {[%clk 00:06:19][%emt
00:01:10]} 69.Kg1 {[%clk 00:14:14][%emt 00:00:52]} 69...Re2 {[%clk
00:05:17][%emt 00:01:31]} 70.Ra4+ {[%clk 00:13:17][%emt 00:01:27]} 70...g4 
{[%clk 00:05:28][%emt 00:00:19]} 71.Rb4 {[%clk 00:13:36][%emt 00:00:12]} 
71...Kg3 {[%clk 00:05:25][%emt 00:00:33]} 72.Rb3+ {[%clk 00:14:04][%emt
00:00:02]} 72...Kf4 {[%clk 00:05:50][%emt 00:00:05]} 73.Rb4+ {[%clk
00:14:08][%emt 00:00:26]} 73...Kf3 {[%clk 00:06:14][%emt 00:00:05]} 74.Rb3+ 
{[%clk 00:14:07][%emt 00:00:32]} 74...Re3 {[%clk 00:06:10][%emt 00:00:35]} 
75.Rb1 {[%clk 00:13:44][%emt 00:00:53]} 75...g3 {[%clk 00:06:01][%emt 00:00:39]} 
76.Rf1+ {[%clk 00:13:58][%emt 00:00:16]} 76...Ke4 {[%clk 00:04:50][%emt
00:01:41]} 77.Ra1 {[%clk 00:14:22][%emt 00:00:06]} 77...Rd3 {[%clk
00:04:39][%emt 00:00:41]} 78.Rb1 {[%clk 00:14:30][%emt 00:00:21]} 78...Kf3 
{[%clk 00:04:47][%emt 00:00:22]} 79.Re1 {[%clk 00:14:39][%emt 00:00:22]} 
79...Rd6 {[%clk 00:02:57][%emt 00:02:20]} 0-1